[Event "Titled Tuesday Blitz June 07 Late 2022"]
[White "Bluebaum, Matthias"]
[Black "Larino Nieto, David"]
[WhiteFideId "24651516"]
[BlackFideId "2256444"]
[WhiteElo "2556"]
[BlackElo "2532"]
[Result "1-0"]
[Round "07"]
[TimeControl "180+1"]
[Date "2022.06.07"]
[WhiteClock "0:00:15"]
[BlackClock "0:00:06"]

1. d4 {[%clk 0:03:00]}  e6 {[%clk 0:02:59]} 2. c4 {[%clk 0:03:01]}  b6 {[%clk 0:03:00]} 3. a3 {[%clk 0:03:00]}  Bb7 {[%clk 0:03:01]} 4. Nc3 {[%clk 0:03:01]}  d6 {[%clk 0:03:00]} 5. e4 {[%clk 0:02:59]}  Nd7 {[%clk 0:03:01]} 6. Nf3 {[%clk 0:03:00]}  h6 {[%clk 0:03:02]} 7. Be2 {[%clk 0:02:59]}  g5 {[%clk 0:03:02]} 8. Be3 {[%clk 0:02:57]}  Ne7 {[%clk 0:03:03]} 9. d5 {[%clk 0:02:50]}  e5 {[%clk 0:02:45]} 10. g4 {[%clk 0:02:48]}  Ng6 {[%clk 0:02:44]} 11. h4 {[%clk 0:02:42]}  gxh4 {[%clk 0:02:42]} 12. Qd2 {[%clk 0:02:39]}  a6 {[%clk 0:02:39]} 13. O-O-O {[%clk 0:02:37]}  Nc5 {[%clk 0:02:38]} 14. Kb1 {[%clk 0:02:37]}  a5 {[%clk 0:02:32]} 15. Rh2 {[%clk 0:02:27]}  Bc8 {[%clk 0:02:29]} 16. Rg1 {[%clk 0:02:23]}  a4 {[%clk 0:02:27]} 17. Bd1 {[%clk 0:02:22]}  Bd7 {[%clk 0:02:26]} 18. Bc2 {[%clk 0:02:22]}  Bg7 {[%clk 0:02:24]} 19. g5 {[%clk 0:01:28]}  hxg5 {[%clk 0:02:04]} 20. Bxg5 {[%clk 0:01:28]}  Bf6 {[%clk 0:02:04]} 21. Nxh4 {[%clk 0:01:28]}  Nxh4 {[%clk 0:01:57]} 22. Rxh4 {[%clk 0:01:25]}  Rxh4 {[%clk 0:01:51]} 23. Bxh4 {[%clk 0:01:26]}  Bxh4 {[%clk 0:01:51]} 24. Rg8+ {[%clk 0:01:24]}  Ke7 {[%clk 0:01:52]} 25. Rxd8 {[%clk 0:01:23]}  Rxd8 {[%clk 0:01:52]} 26. Qd1 {[%clk 0:01:15]}  Ra8 {[%clk 0:01:50]} 27. Qg1 {[%clk 0:01:05]}  Bf6 {[%clk 0:01:48]} 28. Ka2 {[%clk 0:01:05]}  Rh8 {[%clk 0:01:47]} 29. Qd1 {[%clk 0:01:05]}  Ra8 {[%clk 0:01:43]} 30. Ne2 {[%clk 0:00:53]}  Rg8 {[%clk 0:01:40]} 31. Ng3 {[%clk 0:00:53]}  Rg4 {[%clk 0:01:25]} 32. Nh5 {[%clk 0:00:41]}  Rh4 {[%clk 0:01:01]} 33. Nxf6 {[%clk 0:00:40]}  Kxf6 {[%clk 0:01:02]} 34. Qg1 {[%clk 0:00:24]}  Rh8 {[%clk 0:00:51]} 35. Qg3 {[%clk 0:00:22]}  Rh3 {[%clk 0:00:29]} 36. Qg8 {[%clk 0:00:21]}  Ke7 {[%clk 0:00:27]} 37. Qg5+ {[%clk 0:00:19]}  Ke8 {[%clk 0:00:25]} 38. f4 {[%clk 0:00:15]}  exf4 {[%clk 0:00:20]} 39. Qxf4 {[%clk 0:00:16]}  Kd8 {[%clk 0:00:17]} 40. e5 {[%clk 0:00:16]}  dxe5 {[%clk 0:00:18]} 41. Qxe5 {[%clk 0:00:16]}  Nb3 {[%clk 0:00:10]} 42. d6 {[%clk 0:00:12]}  Nc1+ {[%clk 0:00:10]} 43. Kb1 {[%clk 0:00:12]}  Rh1 {[%clk 0:00:10]} 44. Qe7+ {[%clk 0:00:12]}  Kc8 {[%clk 0:00:10]} 45. Qf8+ {[%clk 0:00:12]}  Kb7 {[%clk 0:00:09]} 46. Be4+ {[%clk 0:00:13]}  Bc6 {[%clk 0:00:06]} 47. Bxc6+ {[%clk 0:00:13]}  Kxc6 {[%clk 0:00:05]} 48. Qa8+ {[%clk 0:00:14]}  Kc5 {[%clk 0:00:06]} 49. Qxh1 {[%clk 0:00:15]} 1-0


[Site "https://www.chess.com"]

[Event "Titled Tuesday Blitz June 07 Late 2022"]
[White "Dounis, Alexandros"]
[Black "Livaic, Leon"]
[WhiteFideId "4213238"]
[BlackFideId "14531534"]
[WhiteElo "2204"]
[BlackElo "2540"]
[Result "0-1"]
[Round "07"]
[TimeControl "180+1"]
[Date "2022.06.07"]
[WhiteClock "0:00:01"]
[BlackClock "0:00:48"]

1. Nf3 {[%clk 0:02:57]}  Nf6 {[%clk 0:03:00]} 2. g3 {[%clk 0:02:56]}  b6 {[%clk 0:03:00]} 3. Bg2 {[%clk 0:02:56]}  Bb7 {[%clk 0:03:01]} 4. O-O {[%clk 0:02:56]}  g6 {[%clk 0:03:02]} 5. d4 {[%clk 0:02:55]}  Bg7 {[%clk 0:03:01]} 6. c4 {[%clk 0:02:54]}  e6 {[%clk 0:03:01]} 7. Nc3 {[%clk 0:02:46]}  Ne4 {[%clk 0:03:01]} 8. Qc2 {[%clk 0:02:39]}  Nxc3 {[%clk 0:02:55]} 9. Qxc3 {[%clk 0:02:40]}  d6 {[%clk 0:02:53]} 10. b3 {[%clk 0:02:34]}  O-O {[%clk 0:02:52]} 11. Bb2 {[%clk 0:02:33]}  Nd7 {[%clk 0:02:50]} 12. Ne1 {[%clk 0:02:26]}  Bxg2 {[%clk 0:02:49]} 13. Kxg2 {[%clk 0:02:26]}  Qe7 {[%clk 0:02:44]} 14. Qd2 {[%clk 0:02:12]}  e5 {[%clk 0:02:43]} 15. e3 {[%clk 0:02:00]}  a5 {[%clk 0:02:43]} 16. a3 {[%clk 0:01:55]}  e4 {[%clk 0:02:39]} 17. f3 {[%clk 0:01:43]}  exf3+ {[%clk 0:02:37]} 18. Nxf3 {[%clk 0:01:42]}  Rae8 {[%clk 0:02:37]} 19. Rae1 {[%clk 0:01:39]}  Nf6 {[%clk 0:02:37]} 20. Qc2 {[%clk 0:01:32]}  Qe4 {[%clk 0:02:36]} 21. Qxe4 {[%clk 0:01:27]}  Nxe4 {[%clk 0:02:35]} 22. Bc1 {[%clk 0:01:24]}  c6 {[%clk 0:02:26]} 23. Nd2 {[%clk 0:01:22]}  f5 {[%clk 0:02:12]} 24. Nxe4 {[%clk 0:01:18]}  Rxe4 {[%clk 0:02:13]} 25. Rf4 {[%clk 0:01:16]}  Rfe8 {[%clk 0:02:10]} 26. Rxe4 {[%clk 0:01:16]}  Rxe4 {[%clk 0:02:11]} 27. Bd2 {[%clk 0:01:07]}  Kf7 {[%clk 0:02:10]} 28. Kf3 {[%clk 0:01:05]}  Ke6 {[%clk 0:02:08]} 29. Rc1 {[%clk 0:00:58]}  Bf8 {[%clk 0:01:35]} 30. b4 {[%clk 0:00:44]}  a4 {[%clk 0:01:34]} 31. h3 {[%clk 0:00:35]}  h5 {[%clk 0:01:34]} 32. Rg1 {[%clk 0:00:33]}  b5 {[%clk 0:01:27]} 33. cxb5 {[%clk 0:00:24]}  cxb5 {[%clk 0:01:28]} 34. Rc1 {[%clk 0:00:24]}  Kd7 {[%clk 0:01:24]} 35. Ke2 {[%clk 0:00:14]}  d5 {[%clk 0:01:19]} 36. Kd3 {[%clk 0:00:13]}  Bd6 {[%clk 0:01:19]} 37. Rg1 {[%clk 0:00:13]}  Re8 {[%clk 0:01:12]} 38. g4 {[%clk 0:00:12]}  fxg4 {[%clk 0:01:13]} 39. hxg4 {[%clk 0:00:13]}  h4 {[%clk 0:01:13]} 40. g5 {[%clk 0:00:11]}  h3 {[%clk 0:01:12]} 41. Rh1 {[%clk 0:00:11]}  h2 {[%clk 0:01:12]} 42. Be1 {[%clk 0:00:11]}  Re4 {[%clk 0:01:08]} 43. Ke2 {[%clk 0:00:08]}  Rg4 {[%clk 0:01:07]} 44. Bf2 {[%clk 0:00:07]}  Rxg5 {[%clk 0:01:07]} 45. Kf3 {[%clk 0:00:07]}  Ke6 {[%clk 0:01:00]} 46. e4 {[%clk 0:00:07]}  dxe4+ {[%clk 0:00:58]} 47. Kxe4 {[%clk 0:00:08]}  Rf5 {[%clk 0:00:58]} 48. Be3 {[%clk 0:00:08]}  g5 {[%clk 0:00:54]} 49. Re1 {[%clk 0:00:04]}  g4 {[%clk 0:00:53]} 50. d5+ {[%clk 0:00:04]}  Rxd5 {[%clk 0:00:53]} 51. Bd4 {[%clk 0:00:04]}  g3 {[%clk 0:00:49]} 52. Kf3+ {[%clk 0:00:02]}  Kf5 {[%clk 0:00:49]} 53. Re4 {[%clk 0:00:01]}  h1=Q+ {[%clk 0:00:48]} 0-1


[Site "https://www.chess.com"]

[Event "Titled Tuesday Blitz June 07 Late 2022"]
[White "Dourerassou, Jonathan"]
[Black "Van Dael, Siem"]
[WhiteFideId "628050"]
[BlackFideId "1049771"]
[WhiteElo "2499"]
[BlackElo "2113"]
[Result "0-1"]
[Round "07"]
[TimeControl "180+1"]
[Date "2022.06.07"]
[WhiteClock "0:01:14"]
[BlackClock "0:00:47"]

1. e4 {[%clk 0:03:00]}  e5 {[%clk 0:03:00]} 2. Nf3 {[%clk 0:03:00]}  Nf6 {[%clk 0:03:00]} 3. Nxe5 {[%clk 0:03:00]}  d6 {[%clk 0:03:01]} 4. Nf3 {[%clk 0:03:00]}  Nxe4 {[%clk 0:03:02]} 5. Nc3 {[%clk 0:03:01]}  Nxc3 {[%clk 0:03:02]} 6. dxc3 {[%clk 0:03:02]}  Be7 {[%clk 0:03:02]} 7. Bf4 {[%clk 0:03:02]}  O-O {[%clk 0:03:03]} 8. Qd2 {[%clk 0:03:03]}  Nd7 {[%clk 0:03:04]} 9. O-O-O {[%clk 0:03:03]}  Nc5 {[%clk 0:03:04]} 10. Kb1 {[%clk 0:03:03]}  Ne4 {[%clk 0:02:57]} 11. Qe3 {[%clk 0:03:01]}  Nf6 {[%clk 0:02:53]} 12. h3 {[%clk 0:02:59]}  c5 {[%clk 0:02:51]} 13. g4 {[%clk 0:02:55]}  Be6 {[%clk 0:02:51]} 14. c4 {[%clk 0:02:54]}  d5 {[%clk 0:02:47]} 15. g5 {[%clk 0:02:52]}  d4 {[%clk 0:02:46]} 16. Qb3 {[%clk 0:02:34]}  Ne4 {[%clk 0:02:41]} 17. Rh2 {[%clk 0:02:31]}  Nxg5 {[%clk 0:02:25]} 18. Nxg5 {[%clk 0:02:26]}  Bxg5 {[%clk 0:02:26]} 19. Bxg5 {[%clk 0:02:26]}  Qxg5 {[%clk 0:02:27]} 20. Rg2 {[%clk 0:02:25]}  Qh5 {[%clk 0:02:13]} 21. Re1 {[%clk 0:02:19]}  Rab8 {[%clk 0:02:12]} 22. Be2 {[%clk 0:02:14]}  Qxh3 {[%clk 0:01:58]} 23. Rg3 {[%clk 0:02:14]}  Qh2 {[%clk 0:01:58]} 24. Reg1 {[%clk 0:02:14]}  g6 {[%clk 0:01:57]} 25. Qf3 {[%clk 0:02:14]}  Qh6 {[%clk 0:01:46]} 26. Rh1 {[%clk 0:02:13]}  Qg7 {[%clk 0:01:45]} 27. Bd3 {[%clk 0:02:13]}  b5 {[%clk 0:01:40]} 28. cxb5 {[%clk 0:01:59]}  c4 {[%clk 0:01:39]} 29. Be4 {[%clk 0:01:54]}  Rxb5 {[%clk 0:01:38]} 30. Bc6 {[%clk 0:01:51]}  Rb6 {[%clk 0:01:34]} 31. Bd5 {[%clk 0:01:51]}  d3 {[%clk 0:01:28]} 32. b3 {[%clk 0:01:43]}  dxc2+ {[%clk 0:01:29]} 33. Kxc2 {[%clk 0:01:42]}  cxb3+ {[%clk 0:01:27]} 34. axb3 {[%clk 0:01:42]}  Bf5+ {[%clk 0:01:09]} 35. Qxf5 {[%clk 0:01:32]}  gxf5 {[%clk 0:01:10]} 36. Rxg7+ {[%clk 0:01:32]}  Kxg7 {[%clk 0:01:11]} 37. Bc4 {[%clk 0:01:31]}  Rh8 {[%clk 0:01:05]} 38. Ra1 {[%clk 0:01:32]}  Rb7 {[%clk 0:00:59]} 39. Kd3 {[%clk 0:01:30]}  h5 {[%clk 0:00:59]} 40. Ke3 {[%clk 0:01:31]}  h4 {[%clk 0:00:59]} 41. Rg1+ {[%clk 0:01:31]}  Kf6 {[%clk 0:00:59]} 42. Kf3 {[%clk 0:01:29]}  h3 {[%clk 0:00:58]} 43. Rh1 {[%clk 0:01:29]}  h2 {[%clk 0:00:59]} 44. Kg2 {[%clk 0:01:30]}  Rd7 {[%clk 0:00:55]} 45. Rxh2 {[%clk 0:01:29]}  Rxh2+ {[%clk 0:00:56]} 46. Kxh2 {[%clk 0:01:29]}  Rd2 {[%clk 0:00:55]} 47. Kg3 {[%clk 0:01:29]}  Ke5 {[%clk 0:00:56]} 48. Bxf7 {[%clk 0:01:29]}  Ke4 {[%clk 0:00:53]} 49. Be6 {[%clk 0:01:26]}  f4+ {[%clk 0:00:47]} 50. Kg2 {[%clk 0:01:26]}  f3+ {[%clk 0:00:47]} 51. Kg3 {[%clk 0:01:26]}  Rd1 {[%clk 0:00:48]} 52. Kh2 {[%clk 0:01:18]}  Rf1 {[%clk 0:00:47]} 53. Kg3 {[%clk 0:01:18]}  Rg1+ {[%clk 0:00:48]} 54. Kh3 {[%clk 0:01:18]}  Rg2 {[%clk 0:00:48]} 55. Bc8 {[%clk 0:01:16]}  Kf4 {[%clk 0:00:47]} 56. Bb7 {[%clk 0:01:17]}  a5 {[%clk 0:00:47]} 57. Bd5 {[%clk 0:01:14]}  Rxf2 {[%clk 0:00:48]} 58. Bf7 {[%clk 0:01:14]}  Rg2 {[%clk 0:00:46]} 59. Bd5 {[%clk 0:01:13]}  Rg7 {[%clk 0:00:47]} 60. Bc4 {[%clk 0:01:14]}  Rh7# {[%clk 0:00:47]} 0-1


[Site "https://www.chess.com"]

[Event "Titled Tuesday Blitz June 07 Late 2022"]
[White "Dubov, Daniil"]
[Black "Nakamura, Hikaru"]
[WhiteFideId "24126055"]
[BlackFideId "2016192"]
[WhiteElo "2791"]
[BlackElo "2850"]
[Result "0-1"]
[Round "07"]
[TimeControl "180+1"]
[Date "2022.06.07"]
[WhiteClock "0:00:02"]
[BlackClock "0:00:08"]

1. c4 {[%clk 0:03:00]}  Nf6 {[%clk 0:02:59]} 2. Nc3 {[%clk 0:03:00]}  e5 {[%clk 0:02:59]} 3. Nf3 {[%clk 0:03:00]}  Nc6 {[%clk 0:03:00]} 4. g3 {[%clk 0:03:01]}  d5 {[%clk 0:03:00]} 5. cxd5 {[%clk 0:03:01]}  Nxd5 {[%clk 0:03:01]} 6. Bg2 {[%clk 0:03:01]}  Nf6 {[%clk 0:03:00]} 7. O-O {[%clk 0:03:01]}  Be7 {[%clk 0:02:56]} 8. d3 {[%clk 0:03:01]}  O-O {[%clk 0:02:56]} 9. Be3 {[%clk 0:02:59]}  Re8 {[%clk 0:02:50]} 10. Rc1 {[%clk 0:02:58]}  Bf8 {[%clk 0:02:50]} 11. Qb3 {[%clk 0:02:48]}  Nd4 {[%clk 0:02:37]} 12. Qd1 {[%clk 0:02:45]}  Bg4 {[%clk 0:02:31]} 13. Nd2 {[%clk 0:02:37]}  c6 {[%clk 0:02:31]} 14. h3 {[%clk 0:02:35]}  Bh5 {[%clk 0:02:29]} 15. Re1 {[%clk 0:02:04]}  Qd7 {[%clk 0:02:20]} 16. Bg5 {[%clk 0:01:54]}  Nd5 {[%clk 0:02:16]} 17. Nb3 {[%clk 0:01:43]}  f6 {[%clk 0:02:04]} 18. Bd2 {[%clk 0:01:42]}  Nxc3 {[%clk 0:01:55]} 19. bxc3 {[%clk 0:01:38]}  Ne6 {[%clk 0:01:53]} 20. Na5 {[%clk 0:01:33]}  Rac8 {[%clk 0:01:49]} 21. Qa4 {[%clk 0:01:26]}  Nc5 {[%clk 0:01:45]} 22. Qc2 {[%clk 0:01:26]}  b6 {[%clk 0:01:45]} 23. Nb3 {[%clk 0:01:25]}  Ne6 {[%clk 0:01:45]} 24. d4 {[%clk 0:01:20]}  exd4 {[%clk 0:01:12]} 25. cxd4 {[%clk 0:01:20]}  c5 {[%clk 0:01:09]} 26. d5 {[%clk 0:01:15]}  Ng5 {[%clk 0:01:04]} 27. g4 {[%clk 0:00:46]}  Bg6 {[%clk 0:00:41]} 28. e4 {[%clk 0:00:46]}  c4 {[%clk 0:00:32]} 29. Nd4 {[%clk 0:00:46]}  Ba3 {[%clk 0:00:30]} 30. Rcd1 {[%clk 0:00:42]}  c3 {[%clk 0:00:31]} 31. Bxg5 {[%clk 0:00:39]}  fxg5 {[%clk 0:00:31]} 32. Nc6 {[%clk 0:00:38]}  Bc5 {[%clk 0:00:22]} 33. Qxc3 {[%clk 0:00:35]}  Rf8 {[%clk 0:00:23]} 34. Rd2 {[%clk 0:00:34]}  Qf7 {[%clk 0:00:19]} 35. Qb2 {[%clk 0:00:30]}  Qf4 {[%clk 0:00:18]} 36. e5 {[%clk 0:00:29]}  h5 {[%clk 0:00:19]} 37. gxh5 {[%clk 0:00:20]}  Bxh5 {[%clk 0:00:20]} 38. Re4 {[%clk 0:00:20]}  Qf5 {[%clk 0:00:19]} 39. Rc4 {[%clk 0:00:19]}  Kh8 {[%clk 0:00:14]} 40. Rxc5 {[%clk 0:00:17]}  bxc5 {[%clk 0:00:14]} 41. Qc3 {[%clk 0:00:17]}  Rc7 {[%clk 0:00:11]} 42. d6 {[%clk 0:00:16]}  Rb7 {[%clk 0:00:12]} 43. Ne7 {[%clk 0:00:14]}  Rb1+ {[%clk 0:00:12]} 44. Bf1 {[%clk 0:00:10]}  Qe4 {[%clk 0:00:11]} 45. Qg3 {[%clk 0:00:05]}  Be2 {[%clk 0:00:09]} 46. Qg2 {[%clk 0:00:03]}  Rxf1+ {[%clk 0:00:08]} 47. Qxf1 {[%clk 0:00:02]}  Bxf1 {[%clk 0:00:09]} 48. Kxf1 {[%clk 0:00:02]}  Kh7 {[%clk 0:00:08]} 0-1


[Site "https://www.chess.com"]

[Event "Titled Tuesday Blitz June 07 Late 2022"]
[White "Goncalves, Davi Sulzbacher"]
[Black "Saveliev, Alexei"]
[WhiteFideId "2154510"]
[BlackFideId "24128546"]
[WhiteElo "2107"]
[BlackElo "2281"]
[Result "0-1"]
[Round "07"]
[TimeControl "180+1"]
[Date "2022.06.07"]
[WhiteClock "0:00:05"]
[BlackClock "0:00:18"]

1. d4 {[%clk 0:03:00]}  g6 {[%clk 0:02:46]} 2. e4 {[%clk 0:03:00]}  Bg7 {[%clk 0:02:46]} 3. Be3 {[%clk 0:03:00]}  d6 {[%clk 0:02:47]} 4. Qd2 {[%clk 0:03:00]}  Nc6 {[%clk 0:02:47]} 5. Nc3 {[%clk 0:02:59]}  e5 {[%clk 0:02:47]} 6. d5 {[%clk 0:02:58]}  Nce7 {[%clk 0:02:48]} 7. O-O-O {[%clk 0:02:57]}  f5 {[%clk 0:02:48]} 8. f3 {[%clk 0:02:51]}  Nf6 {[%clk 0:02:48]} 9. Bh6 {[%clk 0:02:49]}  O-O {[%clk 0:02:48]} 10. h4 {[%clk 0:02:47]}  fxe4 {[%clk 0:02:46]} 11. h5 {[%clk 0:02:43]}  e3 {[%clk 0:02:41]} 12. Bxe3 {[%clk 0:02:40]}  Nxh5 {[%clk 0:02:39]} 13. g4 {[%clk 0:02:38]}  Nf4 {[%clk 0:02:10]} 14. Qh2 {[%clk 0:02:37]}  h6 {[%clk 0:02:08]} 15. Nge2 {[%clk 0:02:37]}  g5 {[%clk 0:02:04]} 16. Ng3 {[%clk 0:02:36]}  Neg6 {[%clk 0:02:04]} 17. Nge4 {[%clk 0:02:28]}  a6 {[%clk 0:01:56]} 18. Kb1 {[%clk 0:02:22]}  b5 {[%clk 0:01:56]} 19. Ne2 {[%clk 0:02:15]}  Nh4 {[%clk 0:01:50]} 20. Qg3 {[%clk 0:02:02]}  Bb7 {[%clk 0:01:47]} 21. c4 {[%clk 0:01:21]}  bxc4 {[%clk 0:01:43]} 22. N2c3 {[%clk 0:01:21]}  Nd3 {[%clk 0:01:29]} 23. Be2 {[%clk 0:01:16]}  Qe7 {[%clk 0:01:23]} 24. Nd2 {[%clk 0:01:14]}  Nf4 {[%clk 0:01:17]} 25. Bxc4 {[%clk 0:01:13]}  Rab8 {[%clk 0:01:15]} 26. Rde1 {[%clk 0:01:08]}  Nfg2 {[%clk 0:01:12]} 27. Rxh4 {[%clk 0:00:58]}  Nxh4 {[%clk 0:01:12]} 28. Bd3 {[%clk 0:00:52]}  Bc8 {[%clk 0:01:07]} 29. Be4 {[%clk 0:00:51]}  Bd7 {[%clk 0:01:06]} 30. Ka1 {[%clk 0:00:46]}  Be8 {[%clk 0:01:06]} 31. Rh1 {[%clk 0:00:41]}  Qf6 {[%clk 0:01:02]} 32. Qe1 {[%clk 0:00:37]}  Bg6 {[%clk 0:01:01]} 33. Qe2 {[%clk 0:00:35]}  Bxe4 {[%clk 0:00:58]} 34. Ncxe4 {[%clk 0:00:36]}  Qf7 {[%clk 0:00:55]} 35. Nc3 {[%clk 0:00:35]}  a5 {[%clk 0:00:39]} 36. a3 {[%clk 0:00:35]}  Qg6 {[%clk 0:00:33]} 37. Nce4 {[%clk 0:00:33]}  Nxf3 {[%clk 0:00:28]} 38. Nc3 {[%clk 0:00:09]}  Nd4 {[%clk 0:00:19]} 39. Bxd4 {[%clk 0:00:07]}  exd4 {[%clk 0:00:20]} 40. Nce4 {[%clk 0:00:07]}  d3 {[%clk 0:00:20]} 41. Qxd3 {[%clk 0:00:06]}  Rxb2 {[%clk 0:00:20]} 42. Nc3 {[%clk 0:00:05]}  Qxd3 {[%clk 0:00:18]} 0-1


[Site "https://www.chess.com"]

[Event "Titled Tuesday Blitz June 07 Late 2022"]
[White "Hjartarson, Johann"]
[Black "Svane, Frederik"]
[WhiteFideId "2300044"]
[BlackFideId "12923044"]
[WhiteElo "2458"]
[BlackElo "2459"]
[Result "0-1"]
[Round "07"]
[TimeControl "180+1"]
[Date "2022.06.07"]
[WhiteClock "0:00:36"]
[BlackClock "0:00:54"]

1. e4 {[%clk 0:03:00]}  c5 {[%clk 0:03:00]} 2. Ne2 {[%clk 0:02:58]}  Nc6 {[%clk 0:02:57]} 3. d4 {[%clk 0:02:57]}  cxd4 {[%clk 0:02:57]} 4. Nxd4 {[%clk 0:02:57]}  e6 {[%clk 0:02:57]} 5. Nc3 {[%clk 0:02:56]}  a6 {[%clk 0:02:57]} 6. Be2 {[%clk 0:02:54]}  d6 {[%clk 0:02:57]} 7. O-O {[%clk 0:02:54]}  Nf6 {[%clk 0:02:56]} 8. Kh1 {[%clk 0:02:51]}  Be7 {[%clk 0:02:56]} 9. f4 {[%clk 0:02:51]}  O-O {[%clk 0:02:56]} 10. a4 {[%clk 0:02:50]}  Bd7 {[%clk 0:02:54]} 11. Be3 {[%clk 0:02:50]}  Nxd4 {[%clk 0:02:54]} 12. Qxd4 {[%clk 0:02:49]}  Bc6 {[%clk 0:02:55]} 13. a5 {[%clk 0:02:47]}  Nd7 {[%clk 0:02:52]} 14. Qd2 {[%clk 0:02:43]}  Nc5 {[%clk 0:02:44]} 15. Bf3 {[%clk 0:02:39]}  Qc7 {[%clk 0:02:43]} 16. Ra3 {[%clk 0:02:24]}  Rfd8 {[%clk 0:02:36]} 17. b4 {[%clk 0:02:21]}  Nd7 {[%clk 0:02:35]} 18. Rc1 {[%clk 0:02:12]}  d5 {[%clk 0:02:28]} 19. exd5 {[%clk 0:02:03]}  Bxb4 {[%clk 0:02:24]} 20. Rb3 {[%clk 0:01:53]}  Bxc3 {[%clk 0:02:24]} 21. Qxc3 {[%clk 0:01:49]}  exd5 {[%clk 0:02:24]} 22. Bxd5 {[%clk 0:01:49]}  Qd6 {[%clk 0:01:57]} 23. Bxc6 {[%clk 0:01:44]}  bxc6 {[%clk 0:01:58]} 24. Qc4 {[%clk 0:01:35]}  Nf6 {[%clk 0:01:47]} 25. Bc5 {[%clk 0:01:21]}  Qd2 {[%clk 0:01:46]} 26. Rg1 {[%clk 0:01:14]}  Qxa5 {[%clk 0:01:34]} 27. Be7 {[%clk 0:01:07]}  Qd5 {[%clk 0:01:17]} 28. Qa4 {[%clk 0:00:54]}  Ne4 {[%clk 0:01:12]} 29. h3 {[%clk 0:00:42]}  Re8 {[%clk 0:00:55]} 30. Bh4 {[%clk 0:00:36]}  Nc5 {[%clk 0:00:54]} 0-1


[Site "https://www.chess.com"]

[Event "Titled Tuesday Blitz June 07 Late 2022"]
[White "Ibarra Jerez, Jose Carlos"]
[Black "Grigoriants, Sergey"]
[WhiteFideId "2226332"]
[BlackFideId "4130804"]
[WhiteElo "2628"]
[BlackElo "2502"]
[Result "0-1"]
[Round "07"]
[TimeControl "180+1"]
[Date "2022.06.07"]
[WhiteClock "0:00:03"]
[BlackClock "0:00:10"]

1. Nf3 {[%clk 0:02:59]}  d5 {[%clk 0:02:56]} 2. g3 {[%clk 0:02:59]}  g6 {[%clk 0:02:42]} 3. Bg2 {[%clk 0:02:58]}  Bg7 {[%clk 0:02:42]} 4. c4 {[%clk 0:02:58]}  dxc4 {[%clk 0:02:38]} 5. Qa4+ {[%clk 0:02:58]}  Nc6 {[%clk 0:02:32]} 6. O-O {[%clk 0:02:57]}  Nh6 {[%clk 0:02:27]} 7. Qxc4 {[%clk 0:02:52]}  Nf5 {[%clk 0:02:25]} 8. d3 {[%clk 0:02:37]}  O-O {[%clk 0:02:24]} 9. Nc3 {[%clk 0:02:36]}  e5 {[%clk 0:02:20]} 10. Bg5 {[%clk 0:02:34]}  Qd7 {[%clk 0:02:14]} 11. Rac1 {[%clk 0:02:28]}  h6 {[%clk 0:02:14]} 12. Bd2 {[%clk 0:02:27]}  Ncd4 {[%clk 0:01:52]} 13. Nxd4 {[%clk 0:02:24]}  Nxd4 {[%clk 0:01:47]} 14. Rfe1 {[%clk 0:02:23]}  c6 {[%clk 0:01:46]} 15. Ne4 {[%clk 0:02:22]}  Kh7 {[%clk 0:01:38]} 16. Bb4 {[%clk 0:02:04]}  Rd8 {[%clk 0:01:38]} 17. e3 {[%clk 0:01:54]}  Nf5 {[%clk 0:01:34]} 18. Nc5 {[%clk 0:01:49]}  Qc7 {[%clk 0:01:33]} 19. Red1 {[%clk 0:01:44]}  a5 {[%clk 0:01:32]} 20. Be1 {[%clk 0:01:41]}  Nd6 {[%clk 0:01:27]} 21. Qb3 {[%clk 0:01:38]}  Rb8 {[%clk 0:01:09]} 22. Qa4 {[%clk 0:01:14]}  Ra8 {[%clk 0:01:05]} 23. h3 {[%clk 0:01:06]}  Bf5 {[%clk 0:00:46]} 24. g4 {[%clk 0:00:53]}  Bd7 {[%clk 0:00:46]} 25. Qb3 {[%clk 0:00:40]}  Be8 {[%clk 0:00:43]} 26. Na4 {[%clk 0:00:34]}  Qe7 {[%clk 0:00:33]} 27. Nb6 {[%clk 0:00:27]}  Ra6 {[%clk 0:00:33]} 28. Nc4 {[%clk 0:00:24]}  Nxc4 {[%clk 0:00:33]} 29. Qxc4 {[%clk 0:00:24]}  Raa8 {[%clk 0:00:32]} 30. a3 {[%clk 0:00:22]}  f5 {[%clk 0:00:28]} 31. Qc5 {[%clk 0:00:23]}  Qg5 {[%clk 0:00:21]} 32. Bxa5 {[%clk 0:00:19]}  Rd7 {[%clk 0:00:20]} 33. Be1 {[%clk 0:00:16]}  fxg4 {[%clk 0:00:17]} 34. hxg4 {[%clk 0:00:17]}  Qxg4 {[%clk 0:00:18]} 35. Qc4 {[%clk 0:00:17]}  Qg5 {[%clk 0:00:15]} 36. Qe4 {[%clk 0:00:15]}  Bf7 {[%clk 0:00:14]} 37. Qf3 {[%clk 0:00:13]}  Bb3 {[%clk 0:00:13]} 38. Rd2 {[%clk 0:00:12]}  Rf8 {[%clk 0:00:12]} 39. Qg3 {[%clk 0:00:10]}  Qxg3 {[%clk 0:00:11]} 40. fxg3 {[%clk 0:00:11]}  h5 {[%clk 0:00:11]} 41. Rf2 {[%clk 0:00:10]}  Rxf2 {[%clk 0:00:10]} 42. Kxf2 {[%clk 0:00:10]}  Rxd3 {[%clk 0:00:11]} 43. Be4 {[%clk 0:00:09]}  Rd7 {[%clk 0:00:10]} 44. Bc3 {[%clk 0:00:09]}  Bd5 {[%clk 0:00:04]} 45. Bc2 {[%clk 0:00:04]}  e4 {[%clk 0:00:04]} 46. Bxg7 {[%clk 0:00:03]}  Kxg7 {[%clk 0:00:05]} 47. Rd1 {[%clk 0:00:03]}  Rf7+ {[%clk 0:00:05]} 48. Kg2 {[%clk 0:00:03]}  Kf6 {[%clk 0:00:05]} 49. Rf1+ {[%clk 0:00:03]}  Ke5 {[%clk 0:00:05]} 50. Rxf7 {[%clk 0:00:03]}  Bxf7 {[%clk 0:00:06]} 51. Kh3 {[%clk 0:00:03]}  g5 {[%clk 0:00:06]} 52. b4 {[%clk 0:00:03]}  Be6+ {[%clk 0:00:05]} 53. Kg2 {[%clk 0:00:03]}  Bf5 {[%clk 0:00:05]} 54. Kf2 {[%clk 0:00:03]}  b6 {[%clk 0:00:05]} 55. Bd1 {[%clk 0:00:04]}  h4 {[%clk 0:00:04]} 56. gxh4 {[%clk 0:00:03]}  gxh4 {[%clk 0:00:05]} 57. Be2 {[%clk 0:00:03]}  c5 {[%clk 0:00:04]} 58. bxc5 {[%clk 0:00:04]}  bxc5 {[%clk 0:00:05]} 59. a4 {[%clk 0:00:05]}  Kd6 {[%clk 0:00:05]} 60. a5 {[%clk 0:00:05]}  Kc7 {[%clk 0:00:05]} 61. Bc4 {[%clk 0:00:05]}  Bd7 {[%clk 0:00:05]} 62. Kg2 {[%clk 0:00:04]}  Bf5 {[%clk 0:00:05]} 63. Kh2 {[%clk 0:00:04]}  Kb7 {[%clk 0:00:05]} 64. Kg2 {[%clk 0:00:04]}  Ka7 {[%clk 0:00:06]} 65. Kh2 {[%clk 0:00:05]}  Bd7 {[%clk 0:00:05]} 66. Kg2 {[%clk 0:00:05]}  Bg4 {[%clk 0:00:06]} 67. Kh2 {[%clk 0:00:05]}  Bc8 {[%clk 0:00:06]} 68. Kg2 {[%clk 0:00:05]}  Ba6 {[%clk 0:00:05]} 69. Bd5 {[%clk 0:00:05]}  Bd3 {[%clk 0:00:06]} 70. Kh3 {[%clk 0:00:02]}  c4 {[%clk 0:00:06]} 71. Kxh4 {[%clk 0:00:02]}  c3 {[%clk 0:00:07]} 72. Bb3 {[%clk 0:00:03]}  c2 {[%clk 0:00:07]} 73. Bxc2 {[%clk 0:00:03]}  Bxc2 {[%clk 0:00:08]} 74. Kh3 {[%clk 0:00:03]}  Ka6 {[%clk 0:00:09]} 75. Kg3 {[%clk 0:00:03]}  Kxa5 {[%clk 0:00:10]} 0-1


[Site "https://www.chess.com"]